bitfinex-derivatives/quotes_BTCF0:USTF0_20250517
["timestamp","ask_amount","ask_price","bid_price","bid_amount"]
[1747444744488,0.20863682,103010.0,103000.0,0.1940939]
[1747444744694,0.2325751,103010.0,103000.0,1.10585872]
[1747444744991,0.2693751,103010.0,103000.0,1.10733063]
[1747444745192,0.2842506,103010.0,103000.0,1.78733063]
[1747444745692,0.2842506,103010.0,103000.0,1.78833063]
[1747444745892,0.2842506,103010.0,103000.0,1.78933063]
[1747444746487,0.2842506,103010.0,103000.0,1.71696581]
[1747444746683,0.2842506,103010.0,103000.0,1.78933063]
[1747444746886,0.4526506,103010.0,103000.0,1.35696581]
[1747444747194,1.31665542,103010.0,103000.0,0.68347191]
[1747444747582,1.11665542,103010.0,103000.0,0.60037191]
[1747444747782,0.98585542,103010.0,103000.0,0.60037191]
[1747444747981,1.2742906,103010.0,103000.0,0.60037191]
[1747444748195,1.2742906,103010.0,103000.0,0.79446581]
[1747444748696,1.0542906,103010.0,103000.0,0.79446581]
[1747444751301,1.0542906,103010.0,103000.0,0.83106581]
[1747444753992,1.0542906,103010.0,103000.0,0.67587191]
[1747444754199,1.0542906,103010.0,103000.0,0.68587191]
[1747444754501,0.8034506,103010.0,103000.0,0.68587191]
[1747444754693,0.8034506,103010.0,103000.0,0.75823673]
[1747444754894,0.6834506,103010.0,103000.0,0.96583673]
[1747444755096,0.9340106,103010.0,103000.0,0.96583673]
[1747444755589,0.9340106,103010.0,103000.0,0.89347191]
[1747444758600,0.9340106,103010.0,103000.0,0.85587191]
[1747444758799,1.17637542,103010.0,103000.0,0.78037191]
[1747444759104,1.36637542,103010.0,103000.0,0.60037191]
[1747444760905,1.36637542,103010.0,103000.0,0.60581407]
[1747444762602,1.36637542,103010.0,103000.0,0.18891407]
[1747444768200,1.00557542,103010.0,103000.0,0.18891407]
[1747444768400,1.72717542,103010.0,103000.0,0.18891407]
[1747444770514,1.82425942,103010.0,103000.0,6e-08]
[1747444775299,1.7518946,103010.0,103000.0,6e-08]
[1747444775499,1.82425942,103010.0,103000.0,6e-08]
[1747444775820,2.07405942,103010.0,103000.0,6e-08]
[1747444776305,1.57369942,103010.0,103000.0,6e-08]
[1747444776506,2.1326688,103010.0,103000.0,6e-08]
[1747444777809,1.6323088,103010.0,103000.0,6e-08]
[1747444778011,2.1326688,103010.0,103000.0,6e-08]
[1747444778214,2.1326688,103010.0,103000.0,0.18000006]
[1747444780319,2.07405942,103010.0,103000.0,0.18000006]
[1747444780616,2.07405942,103010.0,103000.0,6e-08]
[1747444781217,0.1940939,103000.0,102990.0,0.00194184]
[1747444781404,1.10275872,103000.0,102990.0,0.00194184]
[1747444782117,1.10275872,103000.0,102990.0,0.18194184]
[1747444782614,1.10275872,103000.0,102990.0,0.18494184]
[1747444783017,1.10275872,103000.0,102990.0,0.18694184]
[1747444783918,1.10275872,103000.0,102990.0,0.22634184]
[1747444784723,1.10275872,103000.0,102990.0,0.18694184]
[1747444785317,1.10275872,103000.0,102990.0,0.12586594]
[1747444785512,1.10275872,103000.0,102990.0,0.05498894]
[1747444786521,1.60287872,103000.0,102990.0,0.05498894]
[1747444786727,1.60287872,103000.0,102990.0,0.05298894]
[1747444787040,1.60487872,103000.0,102990.0,0.05398894]
[1747444787411,1.67724354,103000.0,102990.0,4e-08]
[1747444787607,1.60487872,103000.0,102990.0,4e-08]
[1747444788214,1.5325139,103000.0,102990.0,4e-08]
[1747444789735,1.5324339,103000.0,102990.0,4e-08]
[1747444789923,1.0323939,103000.0,102990.0,4e-08]
[1747444790225,1.5315139,103000.0,102990.0,0.07620004]
[1747444790425,1.5315139,103000.0,102990.0,0.0816422]
[1747444790719,0.1941693,102960.0,102950.0,0.43034292]
[1747444790922,0.88605412,102960.0,102950.0,0.43034292]
[1747444791115,0.5136893,102960.0,102950.0,0.61034292]
[1747444791622,0.5136893,102960.0,102950.0,0.19344292]
[1747444791817,0.45344807,102960.0,102950.0,0.19344292]
[1747444792113,0.45344807,102960.0,102950.0,0.27764292]
[1747444792114,0.50444807,102960.0,102950.0,0.27764292]
[1747444792517,0.86524807,102960.0,102950.0,0.27764292]
[1747444792718,0.6059693,102960.0,102950.0,0.27764292]
[1747444792922,0.4486493,102960.0,102950.0,0.35364292]
[1747444793125,0.8094493,102960.0,102950.0,0.35364292]
[1747444793321,0.8086493,102960.0,102950.0,0.27218609]
[1747444793518,0.8194493,102960.0,102950.0,0.27218609]
[1747444793724,1.2272493,102960.0,102950.0,0.27218609]
[1747444793921,0.8871493,102960.0,102950.0,0.31028609]
[1747444794124,0.9311493,102960.0,102950.0,0.30828609]
[1747444794639,0.93985551,102960.0,102950.0,0.30728609]
[1747444794926,0.93885551,102960.0,102950.0,0.30828609]
[1747444795132,1.25885551,102960.0,102950.0,0.30828609]
[1747444796325,1.40358515,102960.0,102950.0,0.24379999]
[1747444797040,1.33122033,102960.0,102950.0,0.24379999]
[1747444797330,1.25885551,102960.0,102950.0,0.24379999]
[1747444797535,1.33122033,102960.0,102950.0,0.24379999]
[1747444797731,1.33322033,102960.0,102950.0,0.24379999]
[1747444798027,1.40558515,102960.0,102950.0,9e-08]
[1747444798233,0.1942258,102930.0,102920.0,0.4169]
[1747444798433,0.8243858,102930.0,102920.0,0.7569]
[1747444798630,0.4435858,102930.0,102920.0,1.21310209]
[1747444799324,0.4435858,102930.0,102920.0,0.81926482]
[1747444799633,0.4435858,102930.0,102920.0,1.18206482]
[1747444799832,0.4435858,102930.0,102920.0,0.82326482]
[1747444800128,0.4435858,102930.0,102920.0,1.1117]
[1747444800333,0.4435858,102930.0,102920.0,1.18406482]
[1747444800633,0.20858879,102930.0,102920.0,1.40406482]
[1747444800819,0.45790879,102930.0,102920.0,1.03406482]
[1747444801019,0.45790879,102930.0,102920.0,0.84326482]
[1747444801220,0.45790879,102930.0,102920.0,1.20406482]
[1747444801430,0.48790879,102930.0,102920.0,1.27576482]
[1747444801628,0.48790879,102930.0,102920.0,0.6726]
[1747444801933,0.56410879,102930.0,102920.0,0.6726]
[1747444802437,0.56410879,102930.0,102920.0,0.74496482]
[1747444802831,0.56410879,102930.0,102920.0,0.6706]
[1747444803035,0.53810879,102930.0,102920.0,0.6696]
[1747444803532,1.29127361,102930.0,102920.0,0.6278123]
[1747444803738,0.1942444,102920.0,102910.0,0.03994335]
[1747444804037,0.1942631,102910.0,102900.0,0.4346186]
[1747444804226,0.5165431,102910.0,102900.0,0.87778342]
[1747444804421,0.2672631,102910.0,102900.0,0.51698342]
[1747444804624,0.5865431,102910.0,102900.0,0.4346186]
[1747444805236,0.5865431,102910.0,102900.0,0.3436]
[1747444805421,0.5865431,102910.0,102900.0,0.8244]
[1747444805622,0.5865431,102910.0,102900.0,0.4636]
[1747444805826,0.2672631,102910.0,102900.0,0.4636]
[1747444806033,0.7661831,102910.0,102900.0,0.4636]
[1747444806234,0.7661831,102910.0,102900.0,0.46863774]
[1747444807134,0.2300631,102910.0,102900.0,0.46863774]
[1747444807434,0.4793031,102910.0,102900.0,0.55000256]
[1747444807636,0.5170031,102910.0,102900.0,0.55000256]
[1747444807833,0.2300631,102910.0,102900.0,0.83843774]
[1747444808136,0.1942631,102910.0,102900.0,1.20797856]
[1747444809031,0.1942631,102910.0,102900.0,1.63561374]
[1747444809233,0.1942631,102910.0,102900.0,0.79128054]
[1747444809234,1.23380792,102910.0,102900.0,0.79128054]
[1747444809430,1.31000792,102910.0,102900.0,0.79128054]
[1747444809737,1.31000792,102910.0,102900.0,0.7692428]
[1747444810237,1.31000792,102910.0,102900.0,0.4608808]
[1747444810536,0.1942819,102900.0,102890.0,0.00097186]
[1747444810734,1.29034672,102900.0,102890.0,0.00097186]
[1747444811235,1.4676619,102900.0,102890.0,0.18097186]
[1747444811428,0.9687819,102900.0,102890.0,0.21977186]
[1747444811629,0.9687819,102900.0,102890.0,0.42113668]
[1747444811834,1.1078619,102900.0,102890.0,0.79683668]
[1747444812033,0.8581819,102900.0,102890.0,0.79987473]
[1747444812240,0.5181819,102900.0,102890.0,0.79987473]
[1747444812538,0.2689819,102900.0,102890.0,0.79987473]
[1747444812835,0.2319819,102900.0,102890.0,0.9998746]
[1747444813228,0.2319819,102900.0,102890.0,0.92750978]
[1747444813537,0.2319819,102900.0,102890.0,0.9998746]
[1747444813936,0.2679819,102900.0,102890.0,0.92750978]
[1747444814231,0.2679819,102900.0,102890.0,0.02303792]
[1747444814232,0.70114672,102900.0,102890.0,0.02303792]
[1747444814433,1.31976672,102900.0,102890.0,2e-08]
[1747444814938,0.1943007,102890.0,102880.0,0.2730186]
[1747444815139,0.1943007,102890.0,102880.0,0.4530186]
[1747444815140,0.9155007,102890.0,102880.0,0.4530186]
[1747444815439,0.9155007,102890.0,102880.0,0.18]
[1747444815440,1.25786552,102890.0,102880.0,0.18]
[1747444815636,1.25786552,102890.0,102880.0,0.0768328]
[1747444815852,1.25786552,102890.0,102880.0,0.0038539]
[1747444816040,0.1943197,102880.0,102870.0,0.00194411]
[1747444816242,0.5961397,102880.0,102870.0,0.00194411]
[1747444816437,1.33740452,102880.0,102870.0,0.00194411]
[1747444816637,1.33740452,102880.0,102870.0,1e-08]
[1747444817055,1.40976934,102880.0,102870.0,1e-08]
[1747444817240,1.4450397,102880.0,102870.0,1e-08]
[1747444817440,0.3743196,102880.0,102870.0,0.45236483]
[1747444817640,1.0098196,102880.0,102870.0,1e-08]
[1747444817836,1.44397595,102880.0,102870.0,1e-08]
[1747444818139,1.56046713,102880.0,102870.0,1e-08]
[1747444818337,1.56046713,102880.0,102870.0,0.18000001]
[1747444818338,0.52078713,102880.0,102870.0,0.18000001]
[1747444818535,1.38046713,102880.0,102870.0,0.18000001]
[1747444818738,1.45283195,102880.0,102870.0,0.18000001]
[1747444818940,1.55303595,102880.0,102870.0,0.06440001]
[1747444819240,1.63527195,102880.0,102870.0,0.001]
[1747444819637,1.63727195,102880.0,102870.0,0.001]
[1747444819945,1.63735195,102880.0,102870.0,0.001]
[1747444820441,1.63735195,102880.0,102870.0,1e-07]
[1747444820745,1.66219113,102880.0,102870.0,1e-07]
[1747444820932,1.80692077,102880.0,102870.0,1e-07]
[1747444821244,1.80892077,102880.0,102870.0,1e-07]
[1747444821535,1.73655595,102880.0,102870.0,1e-07]
[1747444823139,1.73655595,102880.0,102850.0,0.00097224]
[1747444823140,0.1943952,102840.0,102830.0,0.00101255]
[1747444823341,1.48600002,102840.0,102830.0,0.00101255]
[1747444823640,1.4136352,102840.0,102830.0,0.00101255]
[1747444823835,0.6265952,102840.0,102830.0,0.36181255]
[1747444824029,1.1251152,102840.0,102830.0,0.50637737]
[1747444824229,0.6265952,102840.0,102830.0,0.61401255]
[1747444824441,0.5187152,102840.0,102830.0,0.84637737]
[1747444824641,0.5487152,102840.0,102830.0,0.84637737]
[1747444824944,0.5497152,102840.0,102830.0,0.25321255]
[1747444825132,0.7990752,102840.0,102830.0,0.57721255]
[1747444825445,0.7691952,102840.0,102830.0,0.78957737]
[1747444825644,0.7691952,102840.0,102830.0,0.82627737]
[1747444825835,0.7691952,102840.0,102830.0,0.61391255]
[1747444826038,0.7691952,102840.0,102830.0,0.68627737]
[1747444826545,0.7691952,102840.0,102830.0,0.61391255]
[1747444826744,0.7691952,102840.0,102830.0,0.68627737]
[1747444826940,0.7691952,102840.0,102830.0,0.68931716]
[1747444827248,0.4859552,102840.0,102830.0,1.01931716]
[1747444828037,0.4859552,102840.0,102830.0,0.76931716]
[1747444828242,0.2313952,102840.0,102830.0,0.68971831]
[1747444828544,0.2313952,102840.0,102830.0,1.10661831]
[1747444828945,0.2313952,102840.0,102830.0,0.68971831]
[1747444829844,0.2313952,102840.0,102830.0,0.70971831]
[1747444830142,0.2313952,102840.0,102830.0,0.63735349]
[1747444830335,0.2313952,102840.0,102830.0,1.01971831]
[1747444830742,0.2313952,102840.0,102830.0,0.70971831]
[1747444833244,0.001,102840.0,102830.0,1.42374123]
[1747444833440,0.3541027,102850.0,102830.0,1.42374123]
[1747444833441,0.2313005,102850.0,102830.0,1.90093263]
[1747444833638,0.2798946,102850.0,102840.0,0.50552964]
[1747444833840,0.2798946,102850.0,102840.0,0.92612964]
[1747444834046,0.2798946,102850.0,102840.0,1.27336164]
[1747444834350,0.6850146,102850.0,102840.0,1.11863979]
[1747444834544,0.9763146,102850.0,102840.0,1.11863979]
[1747444834746,0.9763146,102850.0,102840.0,1.19100461]
[1747444834942,0.9773146,102850.0,102840.0,1.19200461]
[1747444835447,0.9773146,102850.0,102840.0,1.11963979]
[1747444835642,0.9773146,102850.0,102840.0,1.15380461]
[1747444835840,1.04967942,102850.0,102840.0,0.15328559]
[1747444836042,1.41047942,102850.0,102840.0,0.06396229]
[1747444836343,0.1943951,102840.0,102830.0,5e-08]
[1747444836548,1.01025992,102840.0,102830.0,5e-08]
[1747444837251,1.01025992,102840.0,102830.0,0.11623315]
[1747444837750,1.01125992,102840.0,102830.0,0.12023315]
[1747444838048,1.01325992,102840.0,102830.0,0.09438131]
[1747444840055,1.08562474,102840.0,102830.0,0.09438131]
[1747444840351,0.9408951,102840.0,102830.0,0.09438131]
[1747444840553,1.01325992,102840.0,102830.0,0.09438131]
[1747444841357,1.01325992,102840.0,102830.0,0.09238131]
[1747444841552,1.08562474,102840.0,102830.0,0.09038131]
[1747444841744,1.01325992,102840.0,102830.0,0.09038131]
[1747444842056,1.37405992,102840.0,102830.0,0.09544392]
[1747444842241,1.44642474,102840.0,102830.0,0.09544392]
[1747444842440,1.37405992,102840.0,102830.0,0.09544392]
[1747444843756,0.1944328,102820.0,102810.0,0.02210132]
[1747444844053,0.1944517,102810.0,102800.0,0.503]
[1747444844253,0.3332517,102810.0,102800.0,0.513]
[1747444844443,0.37561652,102810.0,102800.0,0.4758]
[1747444844656,0.37561652,102810.0,102800.0,0.4658]
[1747444844959,0.39561652,102810.0,102800.0,0.4658]
[1747444845255,0.39561652,102810.0,102800.0,0.6458]
[1747444845459,0.3232517,102810.0,102800.0,0.6458]
[1747444845653,0.3328609,102810.0,102800.0,0.6458]
[1747444846457,0.3128609,102810.0,102800.0,0.89216482]
[1747444846657,0.0376,102810.0,102800.0,0.89216482]
[1747444846862,0.4849318,102810.0,102800.0,1.12666482]
[1747444847154,0.4858118,102810.0,102800.0,1.12666482]
[1747444847357,0.4858118,102810.0,102800.0,1.62666482]
[1747444847659,0.4848118,102810.0,102800.0,1.62266482]
[1747444847950,0.1954518,102810.0,102800.0,1.97193682]
[1747444848157,0.1954518,102810.0,102800.0,1.72193682]
[1747444848450,0.1954518,102810.0,102800.0,1.72497712]
[1747444848650,0.1954518,102810.0,102800.0,1.6526123]
[1747444848856,0.1954518,102810.0,102800.0,1.72497712]
[1747444849060,0.2331518,102810.0,102800.0,1.72497712]
[1747444849260,0.2331518,102810.0,102800.0,1.73041928]
[1747444849461,0.1954518,102810.0,102800.0,1.73041928]
[1747444850359,0.1954518,102810.0,102800.0,1.65805446]
[1747444850655,0.1954518,102810.0,102800.0,1.98041928]
[1747444851459,0.2299518,102810.0,102800.0,1.98041928]
[1747444851663,0.1954518,102810.0,102800.0,1.98041928]
[1747444852161,0.1954518,102810.0,102800.0,2.17761259]
[1747444852458,0.1954518,102810.0,102800.0,1.98314189]
[1747444853056,0.001,102810.0,102800.0,1.98314189]
[1747444853465,0.1954518,102810.0,102800.0,1.98010159]
[1747444853654,0.001,102810.0,102800.0,2.17457229]
[1747444854661,0.001,102810.0,102800.0,2.1776125]
[1747444855554,0.3629536,102820.0,102800.0,2.2262284]
[1747444855756,0.3629536,102820.0,102810.0,0.52666482]
[1747444856057,0.3629536,102820.0,102810.0,1.08970503]
[1747444856258,0.3629536,102820.0,102810.0,1.09242764]
[1747444856656,0.3401036,102820.0,102810.0,1.59242764]
[1747444856967,0.04845,102820.0,102810.0,1.78687944]
[1747444857264,0.2428829,102820.0,102810.0,1.78687944]
[1747444857765,0.2438829,102820.0,102810.0,1.78687944]
[1747444858361,0.2428829,102820.0,102810.0,1.78687944]
[1747444858564,0.01395,102820.0,102810.0,1.85924426]
[1747444858754,0.2083829,102820.0,102810.0,1.85924426]
[1747444858955,0.2432829,102820.0,102810.0,1.86024426]
[1747444859156,0.2432829,102820.0,102810.0,1.85720405]
[1747444859466,0.2432829,102820.0,102810.0,1.78483923]
[1747444859961,0.2432829,102820.0,102810.0,1.95446804]
[1747444859962,0.04885,102820.0,102810.0,1.95446804]
[1747444860561,0.04885,102820.0,102810.0,2.20950804]
[1747444860865,0.04885,102820.0,102810.0,2.21254807]
[1747444861261,0.02286,102830.0,102820.0,0.1944329]
[1747444861469,0.02286,102830.0,102820.0,1.00253775]
[1747444861665,0.002,102840.0,102830.0,0.33914364]
[1747444861959,0.0353,102850.0,102840.0,0.1943951]
[1747444862167,0.25273733,102870.0,102840.0,1.10792964]
[1747444862357,0.3143324,102870.0,102860.0,0.79396482]
[1747444862562,0.0714,102870.0,102860.0,1.36832212]
[1747444862752,0.0714,102870.0,102860.0,1.42072212]
[1747444862965,0.2449183,102880.0,102860.0,1.51789892]
[1747444863261,0.038,102880.0,102870.0,1.00730804]
[1747444863463,0.002,102880.0,102870.0,1.42673065]
[1747444863660,0.002,102880.0,102870.0,1.52393465]
[1747444864057,0.2303006,102890.0,102880.0,0.1943195]
[1747444864258,0.2303006,102890.0,102880.0,1.03068432]
[1747444864468,0.2303006,102890.0,102880.0,1.03340693]
[1747444864658,0.2303006,102890.0,102880.0,0.83908743]
[1747444865058,0.2303006,102890.0,102880.0,0.62672261]
[1747444865264,0.28015125,102890.0,102880.0,0.59022261]
[1747444865565,0.36251607,102890.0,102880.0,0.54352261]
[1747444865758,0.72331607,102890.0,102880.0,0.18272261]
[1747444866253,0.36251607,102890.0,102880.0,0.18272261]
[1747444866456,0.72331607,102890.0,102880.0,0.18272261]
[1747444866965,1.02651607,102890.0,102880.0,0.18272261]
[1747444867366,1.03451607,102890.0,102880.0,0.18372261]
[1747444867766,1.03251607,102890.0,102880.0,0.18272261]
[1747444868167,1.03951607,102890.0,102880.0,0.18372261]
[1747444868763,0.60635125,102890.0,102880.0,0.18372261]
[1747444868970,0.54635125,102890.0,102880.0,0.61688743]
[1747444869171,0.29315125,102890.0,102880.0,0.78348743]
[1747444869590,0.09885065,102890.0,102880.0,0.78348743]
[1747444869782,0.29315125,102890.0,102880.0,0.81868743]
[1747444869979,0.0844,102890.0,102880.0,0.81868743]
[1747444870183,0.2787006,102890.0,102880.0,0.81868743]
[1747444870687,0.0844,102890.0,102880.0,0.88300693]
[1747444870889,0.2787006,102890.0,102880.0,1.49632261]
[1747444871089,0.2787006,102890.0,102880.0,1.22112261]
[1747444871090,0.3787006,102890.0,102880.0,1.22112261]
[1747444871581,0.3787006,102890.0,102880.0,1.18452261]
[1747444871994,0.3787006,102890.0,102880.0,1.21862261]
[1747444872287,0.3787006,102890.0,102880.0,1.29098743]
[1747444872887,0.3787006,102890.0,102880.0,1.25688743]
[1747444873587,0.3787006,102890.0,102880.0,1.67378743]
[1747444874088,0.3787006,102890.0,102880.0,1.60142261]
[1747444876091,0.3787006,102890.0,102880.0,1.67378743]
[1747444878084,0.3787006,102890.0,102880.0,1.25688743]
[1747444879583,0.2787006,102890.0,102880.0,1.25688743]
[1747444880496,0.2787006,102890.0,102880.0,1.11688743]
[1747444880794,0.2787006,102890.0,102880.0,1.12232959]
[1747444882599,0.2787006,102890.0,102880.0,1.04996477]
[1747444883694,0.2787006,102890.0,102880.0,1.17996477]
[1747444883897,0.2787006,102890.0,102880.0,1.25232959]
[1747444884497,0.79186542,102890.0,102880.0,0.81916477]
[1747444884802,1.30558542,102890.0,102880.0,0.64326207]
[1747444884988,1.30558542,102890.0,102880.0,0.50604077]
[1747444884989,1.65278142,102890.0,102880.0,0.50604077]
[1747444885189,0.1943196,102880.0,102870.0,0.00194411]
[1747444885403,1.22140442,102880.0,102870.0,1e-08]
[1747444885787,1.56860842,102880.0,102870.0,1e-08]
[1747444885987,1.64097324,102880.0,102870.0,1e-08]
[1747444886210,3.21505844,102880.0,102830.0,0.43414486]
[1747444886498,0.1943952,102840.0,102830.0,0.37274486]
[1747444886693,0.4490752,102840.0,102830.0,0.37274486]
[1747444886999,0.1943952,102840.0,102830.0,0.77510968]
[1747444887192,0.1943952,102840.0,102830.0,0.95114486]
[1747444887497,0.1943952,102840.0,102830.0,0.70350968]
[1747444887801,0.1953952,102840.0,102830.0,1.20550968]
[1747444887999,0.1953952,102840.0,102830.0,1.13314486]
[1747444888200,0.20537001,102840.0,102830.0,1.07974486]
[1747444888392,0.32593772,102840.0,102830.0,1.07974486]
[1747444888598,1.51871136,102840.0,102830.0,0.5755748]
[1747444888795,1.51871136,102840.0,102830.0,0.5130418]
[1747444889000,1.51871136,102840.0,102830.0,0.0130418]
[1747444889195,0.194414,102830.0,102820.0,0.0366407]
[1747444889399,1.03027882,102830.0,102820.0,0.0366407]
[1747444889797,0.1944519,102810.0,102800.0,0.535]
[1747444890097,0.1944519,102810.0,102800.0,1.035]
[1747444890302,0.2671519,102810.0,102800.0,1.035]
[1747444890998,0.2671519,102810.0,102800.0,1.10736482]
[1747444891304,0.2681519,102810.0,102800.0,1.10936482]
[1747444891701,0.2681519,102810.0,102800.0,1.039]
[1747444891902,0.2681519,102810.0,102800.0,1.11136482]
[1747444894200,0.2319519,102810.0,102800.0,1.11136482]
[1747444894392,0.1954519,102810.0,102800.0,1.14776482]
[1747444894602,0.1954519,102810.0,102800.0,1.0754]
[1747444894901,0.1954519,102810.0,102800.0,1.15320698]
[1747444896604,0.2287519,102810.0,102800.0,1.15320698]
[1747444897291,0.2623519,102810.0,102800.0,1.15320698]
[1747444897707,0.2623519,102810.0,102800.0,1.08084216]
[1747444897903,0.2623519,102810.0,102800.0,1.15320698]
[1747444898502,0.2623519,102810.0,102800.0,1.08084216]
[1747444898902,0.2723519,102810.0,102800.0,0.76084216]
[1747444900208,0.2623519,102810.0,102800.0,0.76084216]
[1747444902111,0.2623519,102810.0,102800.0,0.83320698]
[1747444902301,0.2623519,102810.0,102800.0,0.76084216]
[1747444902612,0.2623519,102810.0,102800.0,0.83320698]
[1747444904594,0.2623519,102810.0,102800.0,0.76084216]
[1747444905311,0.2623519,102810.0,102800.0,0.83320698]
[1747444905515,0.2623519,102810.0,102800.0,0.76084216]
[1747444905811,0.2623519,102810.0,102800.0,0.83320698]
[1747444907014,0.2623519,102810.0,102800.0,0.93320698]
[1747444907212,0.001,102810.0,102800.0,1.40767818]
[1747444907413,0.1954523,102810.0,102800.0,1.40767818]
[1747444908816,0.1954523,102810.0,102800.0,1.33531336]
[1747444909017,0.1954523,102810.0,102800.0,1.40767818]
[1747444910015,0.41781712,102810.0,102800.0,0.29444216]
[1747444910318,0.5708523,102810.0,102800.0,0.29444216]
[1747444910517,0.5708523,102810.0,102800.0,0.36624216]
[1747444910822,0.5705323,102810.0,102800.0,1.28387818]
[1747444911010,0.5705323,102810.0,102800.0,1.32007818]
[1747444912218,0.5705323,102810.0,102800.0,0.95927818]
[1747444912517,0.5705323,102810.0,102800.0,0.40244216]
[1747444913203,0.5705323,102810.0,102800.0,0.41244216]
[1747444913511,0.001,102810.0,102800.0,0.95771336]
[1747444913705,0.001,102810.0,102800.0,1.40007818]
[1747444913902,0.1954523,102810.0,102800.0,1.40007818]
[1747444914103,0.1954523,102810.0,102800.0,1.32771336]
[1747444914311,0.1954523,102810.0,102800.0,1.40007818]
[1747444914713,0.1954523,102810.0,102800.0,1.32771336]
[1747444914919,0.2310523,102810.0,102800.0,1.40007818]
[1747444915218,0.2310523,102810.0,102800.0,1.32771336]
[1747444915419,0.2310523,102810.0,102800.0,1.40007818]
[1747444917314,0.2310523,102810.0,102800.0,1.32771336]
[1747444917619,0.2310523,102810.0,102800.0,1.40007818]
[1747444918124,0.2310523,102810.0,102800.0,1.32771336]
[1747444918328,0.2310523,102810.0,102800.0,1.40007818]
[1747444918718,0.2310523,102810.0,102800.0,1.12771336]
[1747444918923,0.2310523,102810.0,102800.0,1.20007818]
[1747444920120,0.1954523,102810.0,102800.0,1.39007818]
[1747444921126,0.001,102810.0,102800.0,1.39007818]
[1747444921322,0.1954523,102810.0,102800.0,1.39007818]
[1747444921720,0.1954523,102810.0,102800.0,1.89007818]
[1747444923620,0.2334523,102810.0,102800.0,1.89007818]
[1747444924520,0.1954523,102810.0,102800.0,1.89007818]
[1747444925122,0.2306523,102810.0,102800.0,1.81771336]
[1747444925331,0.3055523,102810.0,102800.0,1.64771336]
[1747444925629,0.3055523,102810.0,102800.0,1.72007818]
[1747444926227,0.3055523,102810.0,102800.0,1.35927818]
[1747444926726,0.3055523,102810.0,102800.0,1.28691336]
[1747444927423,0.3055523,102810.0,102800.0,1.64771336]
[1747444927725,0.3055523,102810.0,102800.0,1.72007818]
[1747444929027,0.1954523,102810.0,102800.0,1.72007818]
[1747444929525,0.2311523,102810.0,102800.0,1.64771336]
[1747444929832,0.2311523,102810.0,102800.0,1.72007818]
[1747444930031,0.2690523,102810.0,102800.0,1.64771336]
[1747444930331,0.3065523,102810.0,102800.0,1.72007818]
[1747444930625,0.3065523,102810.0,102800.0,2.13697818]
[1747444931822,0.2311523,102810.0,102800.0,2.13697818]
[1747444933430,0.1954523,102810.0,102800.0,2.13697818]
[1747444935231,0.2307523,102810.0,102800.0,2.13697818]
[1747444937729,0.2307523,102810.0,102800.0,2.06461336]
[1747444937933,0.2307523,102810.0,102800.0,1.70381336]
[1747444938135,0.2688523,102810.0,102800.0,1.70381336]
[1747444938435,0.2688523,102810.0,102800.0,1.77617818]
[1747444938629,0.2688523,102810.0,102800.0,2.13697818]
[1747444939635,0.2307523,102810.0,102800.0,2.13697818]
[1747444940021,0.2307523,102810.0,102800.0,2.06461336]
[1747444940226,0.2307523,102810.0,102800.0,2.13697818]
[1747444941335,0.2307523,102810.0,102800.0,2.06461336]
[1747444941537,0.2307523,102810.0,102800.0,2.13697818]
[1747444942135,0.1954523,102810.0,102800.0,2.13697818]
[1747444943734,0.3608,102830.0,102820.0,0.1944334]
[1747444944035,0.2306145,102830.0,102820.0,0.9152334]
[1747444944226,0.2663145,102830.0,102820.0,1.27589822]
[1747444944732,0.2663145,102830.0,102820.0,1.2035334]
[1747444944933,0.2693145,102830.0,102820.0,1.2035334]
[1747444946036,0.2703145,102830.0,102820.0,1.2035334]
[1747444946338,1.33867932,102830.0,102820.0,0.31]
[1747444946637,1.33867932,102830.0,102820.0,0.18]
[1747444947340,0.1944334,102820.0,102810.0,0.1944515]
[1747444947540,0.89819822,102820.0,102810.0,0.1944515]
[1747444948230,0.89819822,102820.0,102810.0,0.3744515]
[1747444948631,0.4650334,102820.0,102810.0,0.3844515]
[1747444948841,0.6350334,102820.0,102810.0,0.4142515]
[1747444949040,0.9968334,102820.0,102810.0,0.4152515]
[1747444949435,0.6668334,102820.0,102810.0,0.4152515]
[1747444949624,0.7668334,102820.0,102810.0,0.4152515]
[1747444950230,0.6668334,102820.0,102810.0,0.4152515]
[1747444950427,0.3060334,102820.0,102810.0,0.4152515]
[1747444950838,0.3360334,102820.0,102810.0,0.4152515]
[1747444951435,0.3360334,102820.0,102810.0,0.4452515]
[1747444952642,0.3060334,102820.0,102810.0,0.4452515]
[1747444952939,0.3060334,102820.0,102810.0,0.7723515]
[1747444953530,0.3060334,102820.0,102810.0,1.24861632]
[1747444954235,0.3060334,102820.0,102810.0,1.1762515]
[1747444954444,0.3060334,102820.0,102810.0,1.5931515]
[1747444954647,0.3060334,102820.0,102810.0,1.2323515]
[1747444955139,0.37839822,102820.0,102810.0,0.9948]
[1747444955338,0.69839822,102820.0,102810.0,0.5979]
[1747444955541,1.05919822,102820.0,102810.0,0.181]
[1747444956039,1.05919822,102820.0,102810.0,0.18644216]
[1747444956245,1.05919822,102820.0,102810.0,0.00644216]
[1747444956632,1.33863822,102820.0,102810.0,0.00644216]
[1747444957235,0.1944523,102810.0,102800.0,0.105]
[1747444957441,1.39234194,102810.0,102800.0,0.105]
[1747444958033,1.31997712,102810.0,102800.0,0.105]
[1747444958532,1.31997712,102810.0,102800.0,0.107]
[1747444958739,1.32097712,102810.0,102800.0,0.107]
[1747444959334,1.39334194,102810.0,102800.0,0.107]
[1747444959847,0.6092523,102810.0,102800.0,0.3014712]
[1747444960036,0.2792523,102810.0,102800.0,0.4569]
[1747444960236,0.62849712,102810.0,102800.0,0.6798]
[1747444960436,0.62849712,102810.0,102800.0,0.3299]
[1747444960642,0.80849712,102810.0,102800.0,0.287]
[1747444961044,1.43166194,102810.0,102800.0,0.287]
[1747444962243,1.43166194,102810.0,102800.0,0.107]
[1747444962945,1.35929712,102810.0,102800.0,0.107]
[1747444963241,1.63793712,102810.0,102800.0,0.547]
[1747444963441,1.35841712,102810.0,102800.0,0.287]
[1747444963648,0.99761712,102810.0,102800.0,0.337]
[1747444963847,1.35841712,102810.0,102800.0,0.3789]
[1747444964146,1.63753712,102810.0,102800.0,0.3789]
[1747444965537,1.63753712,102810.0,102800.0,0.287]
[1747444966249,1.63753712,102810.0,102800.0,0.107]
[1747444967142,1.27673712,102810.0,102800.0,0.107]
[1747444967448,1.63753712,102810.0,102800.0,0.1902]
[1747444967648,1.2894923,102810.0,102800.0,0.4257712]
[1747444967853,1.2022123,102810.0,102800.0,0.2313]
[1747444968049,0.6492523,102810.0,102800.0,0.4313]
[1747444968351,0.9225323,102810.0,102800.0,0.6113]
[1747444968850,1.2833323,102810.0,102800.0,0.6113]
[1747444969048,0.9225323,102810.0,102800.0,0.6113]
[1747444969754,1.2833323,102810.0,102800.0,0.6113]